Cogmind - Beta 15 @@@ ROGUE MODE // 2025.08.10 @ 18:00:46 Player: Waste Result: Destroyed by Swarm Drone with Compact Gauss Rifle Performance ------------- Evolutions (9) 4500 Regions Visited (18) 3600 Robots Destroyed (99) 495 Value Destroyed (4288) 4288 Prototype IDs (105) 2100 Alien Tech Used (3) 600 Bonus (4060) 4060 TOTAL SCORE: 19643 Bonus ------- High Alert Combat Kills 90 Follower Combat Kills 1441 Registered with UFD 300 Met Optimus in HQ 500 Met Data Miner 300 Scanned by Researcher 500 Met Optimus at Protoforge 1000 Friendly Fire -71 Cogmind --------- Core Integrity 0/1600 Matter 21/300 Energy 89/100 System Corruption 53% Temperature Cool (0) Movement Core (50) Location -1/Access Parts ------- > --- POWER (3) -------- (None) > --- PROPULSION (10) -- (None) > --- UTILITY (8) ------ (None) > --- WEAPON (4) ------- Nanosword > --- INVENTORY (5) ---- Experimental Cooling System Advanced Sensor Array Experimental Melee Analysis Suite Improved Thermal Shield Enhanced Hardcell Cannon Peak State ------------ > --- POWER ------------ Micro Antimatter Reactor Light Quantum Reactor Hybrid Graviton Reactor > --- PROPULSION ------- Centrium Leg Experimental Biometal Leg Experimental VSS Leg Experimental VSS Leg Experimental VSS Leg Experimental VSS Leg Experimental VSS Leg > --- UTILITY ---------- Experimental Heat Sink Large Storage Unit Experimental Optical Array Advanced Signal Interpreter Experimental Core Analyzer Experimental Armor Integrity Analyzer Improved Phase Shifter Graphene Brace > --- WEAPON ----------- Precision Phase Gun Hypervelocity Multirail Concept XC Strikerail Enhanced Hardcell Cannon > --- INVENTORY -------- Advanced Power Amplifier Experimental Cooling System Advanced Sensor Array Experimental Melee Analysis Suite Improved Thermal Shield Crosscalibrator Enhanced Quantum Rifle Disruptor Cannon Heavy Phase Cannon Concept XC Strikerail Gamma Bomb Array Fusion Bomb Launcher Nanosword [Rating: 205] Favorites ----------- Power Light Ion Engine Engine Light Ion Engine Power Core Light Fission Core Reactor Micro Antimatter Reactor Propulsion Improved Treads Treads Improved Treads Leg Experimental VSS Leg Wheel Compact Wheel Flight Unit Cooled Impulse Thruster Utility Huge Storage Unit Device Structural Scanner Storage Huge Storage Unit Processor Core Analyzer Hackware Deep Network Scanner Protection Improved Utility Shielding Weapon Subdweller Machine Gun Energy Gun Improved Medium Laser Energy Cannon Subdweller Beam Cannon Ballistic Gun Subdweller Machine Gun Ballistic Cannon Enhanced Hardcell Cannon Launcher Grenade Launcher Special Weapon Multitool Slashing Weapon Scythe Piercing Weapon Heavy Pick Build | -11 -10 -10 -9 -6 -6 -6 -6 -5 -5 -5 -5 -4 -3 -3 -2 -2 -2 -1 ------- Run | Yrd Mat Sub Scr Fac Low Low Dat Pro Fac Was Fac Fac Res Qua Res Tes Frg Acc Slots Evolved 18 | . . . . 8 . . . . 2 . . 2 2 . 2 . . 2 Power 2 | . . . . . . . . . 1 . . . . . 1 . . . Propulsion 8 | . . . . 4 . . . . 1 . . 1 1 . 1 . . . Utility 6 | . . . . 4 . . . . . . . 1 1 . . . . . Weapon 2 | . . . . . . . . . . . . . . . . . . 2 Parts Attached 166 | . 9 11 5 17 5 1 1 2 1 . 5 4 22 2 11 8 31 31 Power 27 | . 1 2 1 1 . . 1 1 1 . 1 . 2 . 5 . 4 7 Engine 5 | . 1 2 1 . . . . . . . . . . . . . 1 . Core 7 | . . . . 1 . . 1 1 1 . 1 . . . 2 . . . Reactor 15 | . . . . . . . . . . . . . 2 . 3 . 3 7 Propulsion 42 | . 2 1 2 4 . . . . . . 1 . 10 1 2 1 12 6 Treads 4 | . 2 1 . . . . . . . . . . . . . . . 1 Leg 13 | . . . . . . . . . . . . . . . . . 8 5 Wheel 4 | . . . 2 . . . . . . . . . . . . . 2 . Hover . | . . . . . . . . . . . . . . . . . . . Flight 21 | . . . . 4 . . . . . . 1 . 10 1 2 1 2 . Utility 61 | . 2 1 1 11 2 1 . 1 . . 1 3 7 1 4 5 11 10 Device 29 | . 1 1 1 3 1 1 . . . . 1 1 3 . 2 4 2 8 Storage 3 | . 1 . . 2 . . . . . . . . . . . . . . Processor 18 | . . . . 3 1 . . 1 . . . 2 1 . 2 . 7 1 Hackware 5 | . . . . 1 . . . . . . . . 2 . . 1 1 . Protection 6 | . . . . 2 . . . . . . . . 1 1 . . 1 1 Artifact . | . . . . . . . . . . . . . . . . . . . Weapon 36 | . 4 7 1 1 3 . . . . . 2 1 3 . . 2 4 8 Energy Gun 9 | . 2 4 . . . . . . . . . . . . . . 1 2 Energy Cannon 5 | . . 1 . . 1 . . . . . . . 1 . . 1 . 1 Ballistic Gun 9 | . 2 1 . . . . . . . . . . . . . 1 2 3 Ballistic Cannon 1 | . . . . . . . . . . . . . . . . . . 1 Launcher 5 | . . 1 . . 2 . . . . . . . . . . . 1 1 Special Weapon 1 | . . . . . . . . . . . . 1 . . . . . . Impact Weapon . | . . . . . . . . . . . . . . . . . . . Slashing Weapon 5 | . . . 1 . . . . . . . 2 . 2 . . . . . Piercing Weapon 1 | . . . . 1 . . . . . . . . . . . . . . Special Melee Weapon . | . . . . . . . . . . . . . . . . . . . Unidentified Prototypes 31 | . 1 1 . 1 1 1 . . . . 1 1 5 . 3 4 12 . Corrupted Parts 4 | . . . . . . . . . . . . . . . . . . 4 System Corruption 34 | . . . . . . . . . . . . . . . . . . 34 Parts Lost 66 | . 1 1 . . 1 . 1 . . . 1 . . 1 1 . 26 33 Power 15 | . . . . . . . 1 . . . 1 . . . 1 . 6 6 Propulsion 19 | . . . . . . . . . . . . . . . . . 10 9 Utility 20 | . . . . . 1 . . . . . . . . 1 . . 10 8 Weapon 12 | . 1 1 . . . . . . . . . . . . . . . 10 Highest Loss Streak 21 | . 1 1 . . 1 . 1 . . . 1 . . 1 1 . 8 21 To Critical Strikes 1 | . . . . . . . . . . . . . . . . . 1 . Average Backups 18 | . 14 23 19 11 12 13 13 13 12 13 13 13 14 14 14 15 14 10 Power 2 | . 1 3 2 1 1 2 2 1 . 1 . 1 1 1 . . . . Propulsion 4 | . 7 8 4 1 1 1 1 1 . . . 1 . 1 . . . . Utility 4 | . 1 2 6 2 4 4 5 5 6 7 7 6 8 7 8 8 6 5 Weapon 6 | . 4 9 5 5 5 5 4 4 4 4 3 3 3 3 3 3 6 4 Tool/Special . | . . . . . . . . . . . . . . . . . . . Unused Backups 45 | . 7 10 12 . 1 . 1 1 1 1 3 . 3 2 1 1 . 1 Power 6 | . 1 . 3 . . . . 1 . . 1 . . . . . . . Propulsion 14 | . 5 4 5 . . . . . . . . . . . . . . . Utility 14 | . 1 3 1 . 1 . . . 1 1 2 . . 1 1 1 . 1 Weapon 10 | . . 3 3 . . . 1 . . . . . 3 . . . . . Tool/Special 1 | . . . . . . . . . . . . . . 1 . . . . Average Slot Usage (%) 87 | . 97 100 83 70 73 73 73 73 77 78 82 78 84 88 89 94 69 68 Engine 9 | . 14 14 13 . . . . . . . . . . . . . 1 . Core 1 | . . . . 4 5 5 4 5 10 10 10 9 5 . 4 4 . . Treads 18 | . 22 28 26 . . . . . . . . . . . . . . . Leg 1 | . 5 . . . . . . . . . . . . . . . 12 21 Flight 6 | . . . . 15 16 17 17 17 20 21 21 19 26 33 36 39 13 . Device 11 | . 11 14 3 19 15 17 14 13 15 15 15 17 19 19 20 16 4 9 Storage 10 | . 14 14 13 5 5 5 5 5 5 5 5 4 4 4 4 4 4 3 Processor 4 | . . . . 10 21 23 23 25 21 21 21 19 11 4 4 4 11 9 Energy Gun 3 | . 3 8 . . . . . . . . . . . . . . . 4 Energy Cannon 4 | . . 11 . . 1 2 . . . . . . . . . . . . Ballistic Gun 6 | . 24 7 6 . . . . . . . . . . . . . 3 6 Launcher 3 | . . . 12 . . . . . . . . . . . . . . 1 Slashing Weapon 2 | . . . 5 2 . . 4 2 4 5 5 8 6 9 8 7 1 2 Peak Build Rating 205 | . 14 21 20 81 86 87 93 91 96 96 108 115 158 157 177 191 201 205 Average Rating 50 | . 12 17 17 72 82 84 86 87 95 96 103 110 140 153 167 181 148 149 On Entrance 88 | 6 6 14 20 15 81 82 84 86 87 96 96 107 111 157 156 177 191 115 Naked Turns 74 | . . . 73 . . . . . . . . . . . . . . 1 Heaviest Build 97 | 14 92 97 91 38 39 39 35 35 38 38 42 43 58 58 64 61 78 96 Greatest Support 243 | 20 46 46 52 38 40 40 34 34 44 44 50 50 74 72 79 98 243 188 Greatest Overweight (x) 4 | . 1 2 3 . . . 1 1 . . . . 1 . . 4 3 1 Average Overweight (x) . | . . 1 . . . . . . . . . . . . . . . . Largest Inventory Capacity 25 | . 25 25 25 25 15 15 15 15 15 15 15 15 15 15 15 15 15 15 Average Capacity 21 | . 20 25 24 12 14 15 15 15 15 15 15 15 15 15 15 15 15 14 Most Carried 25 | . 19 25 25 25 15 15 15 15 15 15 15 15 15 15 15 15 15 14 Average Carried 19 | . 14 24 22 10 13 14 14 14 13 14 14 14 14 14 14 14 14 10 Final Capacity 25 | 8 25 25 25 10 15 15 15 15 15 15 15 15 15 15 15 15 15 5 Final Carried 25 | 6 19 25 25 10 14 15 14 15 15 15 15 15 15 15 15 15 14 5 Class Distribution -------------------- 68% | Mutant 7% | Scout 7% | Hacker-Scout 5% | Derelict-Scout Dominant Class ---------------- Mutant | -10/Materials Mutant | -10/Subcaves Mutant | -9/Scraptown Sprinter | -6/Factory Scout | -6/Lower Caves Scout | -6/Lower Caves Assassin | -6/Data Miner Derelict-Scout | -5/Proximity Caves Derelict-Scout | -5/Factory Derelict-Scout | -5/Waste Scout | -5/Factory Scout | -4/Factory Hacker-Scout | -3/Research Hacker-Scout | -3/Quarantine Hacker-Scout | -2/Research Hacker-Scout | -2/Testing Scavenger-Mutant | -2/Protoforge Scavenger-Gunner | -1/Access Resources | -11 -10 -10 -9 -6 -6 -6 -6 -5 -5 -5 -5 -4 -3 -3 -2 -2 -2 -1 ----------- Run | Yrd Mat Sub Scr Fac Low Low Dat Pro Fac Was Fac Fac Res Qua Res Tes Frg Acc Matter Collected 3575 | 182 330 205 110 55 124 168 45 100 40 . 80 11 202 . 362 90 574 897 Remotely . | . . . . . . . . . . . . . . . . . . . Salvage Created 5914 | . 724 315 . 83 51 . 26 115 99 567 232 11 380 . 288 400 960 1663 Parts 226 | . 48 18 . 7 5 . 3 6 1 3 6 2 13 . 10 9 47 48 Haulers Intercepted 8 | . 1 . . . . . . . 1 . 2 . 3 . 1 . . . Recyclers Shooed 5 | . 1 . . . . . . . . . . . 1 . . 1 . 2 Parts Field Recycled . | . . . . . . . . . . . . . . . . . . . Retrieved Matter . | . . . . . . . . . . . . . . . . . . . Parts Self-Destructed 45 | . . 10 . . 6 13 . 16 . . . . . . . . . . Prevented 9 | . . . . . . 4 . 5 . . . . . . . . . . Kills | -11 -10 -10 -9 -6 -6 -6 -6 -5 -5 -5 -5 -4 -3 -3 -2 -2 -2 -1 ------- Run | Yrd Mat Sub Scr Fac Low Low Dat Pro Fac Was Fac Fac Res Qua Res Tes Frg Acc Combat Hostiles Destroyed 68 | . 17 7 . . 4 . . 4 . . . . . . . . 10 26 Melee 4 | . . . . . . . . . . . . . . . . . . 4 Guns 24 | . 16 3 . . . . . . . . . . . . . . 3 2 Cannons 6 | . . 3 . . . . . . . . . . . . . . . 3 AOE 29 | . 1 . . . 4 . . 4 . . . . . . . . 3 17 Classes Destroyed 21 | . 5 1 . 3 . . . . . . 1 . . . . . 6 5 Worker 3 | . 1 . . . . . . . . . 1 . . . . . . 1 Builder 6 | . . . . 1 . . . . . . . . . . 2 . . 3 Tunneler 2 | . . . . 1 . . . . . . . 1 . . . . . . Hauler 8 | . 1 . . . . . . . 1 . 2 . 3 . 1 . . . Recycler 7 | . 1 . . . . . . . . . . . . . 1 3 . 2 Mechanic 2 | . . . . . . . . . . . . . . . . . . 2 Operator 1 | . . . . 1 . . . . . . . . . . . . . . Drone 4 | . . . . . . . . . . . . . . . . . . 4 Watcher 4 | . . . . . . . . . . . 1 . 1 . 1 . . 1 Swarmer 15 | . 6 . . . 4 . . 4 . . . . . . . . 1 . Grunt 23 | . 11 . . . . . . . . . . . . . . . . 12 Brawler 3 | . . . . . . . . . . . . . . . . . 2 1 Duelist 3 | . . . . . . . . . . . . . . . . . . 3 Researcher 1 | . . . . . . . . . . . . . . . . . 1 . Sentry 3 | . . . . . . . . . . . . . . . . . . 3 Specialist 3 | . . . . . . . . . . . . . . . . . 3 . Hunter 3 | . . . . . . . . . . . . . . . . . 1 2 Q-Series 1 | . . . . . . . . . . . . . . . . . . 1 Striker 2 | . . . . . . . . . . . . . . . . . 2 . Executioner 1 | . . . . . . . . . . . . . . . . . 1 . Subdweller 7 | . . 7 . . . . . . . . . . . . . . . . Best Kill Streak 17 | . 3 2 . 1 4 . 1 4 1 . 1 1 1 . 1 2 10 17 Combat Bots Only 12 | . 3 2 . . 4 . . 4 . . . . . . . . 10 12 Max Kills in Single Turn 4 | . 1 1 . 1 3 . 1 2 1 . 1 1 1 . 1 1 2 4 Gunslinging . | . . . . . . . . . . . . . . . . . . . Exploded 3 | . 1 . . . 3 . . 2 . . . . . . . . 2 2 Melee 1 | . . . . . . . . . . . . . . . . . . 1 Uniques/NPCs Destroyed 1 | . . . . . . . 1 . . . . . . . . . . . Data Miner (-6/Data Miner) Combat | -11 -10 -10 -9 -6 -6 -6 -6 -5 -5 -5 -5 -4 -3 -3 -2 -2 -2 -1 -------- Run | Yrd Mat Sub Scr Fac Low Low Dat Pro Fac Was Fac Fac Res Qua Res Tes Frg Acc Hostile Shots Fired 625 | . 64 23 . . 7 2 3 2 . . 1 1 27 38 7 7 156 287 Missed 216 | . 19 11 . . 2 1 1 . . . . . 14 21 4 6 53 84 Deflected 2 | . . . . . . . . . . . . . . . . . 2 . Hits 409 | . 45 12 . . 5 1 2 2 . . 1 1 13 17 3 1 103 203 Melee 16 | . . . . . . . . . . . . . . . . . 3 13 Projectile 393 | . 45 12 . . 5 1 2 2 . . 1 1 13 17 3 1 100 190 Critical Strikes 22 | . . . . . . . . . . . . . . 2 . . 7 13 Actively Blocked 9 | . . . . . . . . . . . . . . . . . . 9 Damage Taken 11991 | . 522 226 . . 132 31 93 46 . . 18 15 133 341 70 24 4493 5847 Core 3109 | . 84 56 . . . . 50 . . . 18 . . 57 . . 1237 1607 Absorbed by Shields 46 | . . . . . . . . . . . . . . 18 . . 28 . Redirected to Shielding 157 | . . . . . . . . . . . . . . . . . 105 52 Ignored by Resistances 7 | . . . . . . . . . . . . . . . . . 7 . Regen/Repaired (Parts) 8 | . . . . . . . . . . 2 6 . . . . . . . Core Remaining (%) 77 | 100 . . 44 . . . . 94 . . 98 100 . 95 . . 12 . Volleys Fired 227 | . 48 49 . . 16 7 . 8 . . . . 6 1 5 . 33 54 Largest 4 | . 2 2 . . 2 1 . 1 . . . . 1 1 1 . 2 4 Hottest 307 | . 80 140 . . 63 30 . 30 . . . . 90 90 90 . 90 307 Shots Fired 370 | . 91 81 . . 18 7 . 8 . . . . 6 1 5 . 50 103 Gun 245 | . 91 52 . . . . . . . . . . . . . . 43 59 Cannon 82 | . . 21 . . 14 7 . 5 . . . . 6 1 5 . 2 21 Launcher 43 | . . 8 . . 4 . . 3 . . . . . . . . 5 23 Special . | . . . . . . . . . . . . . . . . . . . Kinetic 176 | . 68 16 . . . . . . . . . . . . . . 43 49 Thermal 124 | . . 57 . . 14 7 . 5 . . . . 6 1 5 . 2 27 Explosive 35 | . . 8 . . 4 . . 3 . . . . . . . . . 20 Electromagnetic 35 | . 23 . . . . . . . . . . . . . . . 5 7 Robot Hit Streak 26 | . 11 17 . . 10 . . 13 . . . . . . . . 22 26 Robot Miss Streak 5 | . 3 1 . . . . . . . . . . . . . . 5 3 Penetration Max 1 | . . . . . . . . . . . . . . . . . 1 . Secondary Targets 2 | . 1 . . . . . . . . . . . . . . . 1 . Max Gunslinging Chain 1 | . 1 . . . . . . . . . . . . . . . 1 . Shots Hit Robots 308 | . 64 44 . 6 2 . 1 4 4 14 9 1 12 . 10 5 43 89 Core Hits 228 | . 31 14 . 2 5 . 1 5 2 3 4 1 5 . 2 3 54 96 Critical Kills 4 | . . . . . . . . . . . . . . . . . 2 2 Critical Parts Destroyed 12 | . 1 . . . . . . . . . . . . . . . 5 6 Critical Strikes 30 | . 1 3 . . . . 1 . 1 . 1 . 2 . . . 7 14 Burn 6 | . . 3 . . . . . . . . . . . . . . . 3 Destroy 16 | . 1 . . . . . . . . . . . . . . . 7 8 Blast 2 | . . . . . . . . . . . . . . . . . . 2 Sever 5 | . . . . . . . . . 1 . 1 . 2 . . . . 1 Impale 1 | . . . . . . . 1 . . . . . . . . . . . Melee Attacks 215 | . . . . 7 . . 23 2 8 14 17 3 37 15 52 10 5 22 Impact . | . . . . . . . . . . . . . . . . . . . Slashing 203 | . . . . 7 . . 21 2 8 14 7 3 37 15 52 10 5 22 Piercing 12 | . . . . . . . 2 . . . 10 . . . . . . . Sneak Attacks 24 | . . . . 4 . . 1 . 1 . 3 1 6 . 5 2 . 1 Combat Hostiles . | . . . . . . . . . . . . . . . . . . . Follow-up Attacks 4 | . . . . . . . . . . . 2 . . . 2 . . . Damage Inflicted 14922 | . 1070 770 . 353 273 . 76 291 171 445 484 71 720 . 1064 395 2320 6419 Guns 3786 | . 979 551 . . . . . . . . . . . . . . 1175 1081 Cannons 661 | . . 164 . . . . . . . . . . . . . . . 497 Explosions 5787 | . 81 55 . . 273 . . 225 . . . . . . . . 1136 4017 Melee 4669 | . . . . 353 . . 76 66 171 445 484 71 720 . 1064 395 . 824 Ramming 19 | . 10 . . . . . . . . . . . . . . . 9 . Kinetic 2904 | . 789 108 . . . . . . . . . . . . . . 1175 832 Thermal 1527 | . 81 607 . . . . . . . . . . . . . . 139 700 Explosive 4348 | . . 55 . . 273 . . 225 . . . . . . . . . 3795 Electromagnetic 1455 | . 190 . . . . . . . . . . . . . . . 997 268 Impact . | . . . . . . . . . . . . . . . . . . . Slashing 4305 | . . . . 353 . . . 66 171 445 196 71 720 . 1064 395 . 824 Piercing 364 | . . . . . . . 76 . . . 288 . . . . . . . Highest Corruption 53 | . . . . . . . . . . . . . 2 2 . 2 33 53 Average Corruption 19 | . . . . . . . . . . . . . 1 2 . 2 24 35 Corruption Purged . | . . . . . . . . . . . . . . . . . . . Corruption Blocked . | . . . . . . . . . . . . . . . . . . . Effects 72 | . . . . . . . . . . . . . 3 2 . 1 38 28 Message Errors 11 | . . . . . . . . . . . . . 1 1 . 1 5 3 Matter Fused 18 | . . . . . . . . . . . . . . . . . 13 5 Heat Flow Errors 6 | . . . . . . . . . . . . . 1 . . . 3 2 Energy Discharges 7 | . . . . . . . . . . . . . . . . . 3 4 Data Loss (minor) 12 | . . . . . . . . . . . . . 1 1 . . 5 5 Data Loss (major) 1 | . . . . . . . . . . . . . . . . . . 1 Misdirections 12 | . . . . . . . . . . . . . . . . . 6 6 Weapon Failures 5 | . . . . . . . . . . . . . . . . . 3 2 Overload Shots . | . . . . . . . . . . . . . . . . . . . Overflow Damage 881 | . 4 . . 132 3 . . . . . 25 . 122 . 337 68 . 190 Projectiles 12 | . . . . . . . . . . . . . . . . . . 12 Explosions 180 | . 4 . . . 3 . . . . . . . . . . . . 173 Melee 689 | . . . . 132 . . . . . . 25 . 122 . 337 68 . 5 Knockbacks 5 | . . . . . . . . . . . . . . . . . . 5 Impact . | . . . . . . . . . . . . . . . . . . . Kinetic 5 | . . . . . . . . . . . . . . . . . . 5 Secondary . | . . . . . . . . . . . . . . . . . . . Self-Inflicted Damage 132 | . 23 2 . . 21 . . 18 . . . . . . . . . 68 Shots 9 | . 1 1 . . 1 . . 1 . . . . . . . . . 5 Rammed 1 | . 1 . . . . . . . . . . . . . . . . . Targets Rammed 5 | . 2 . . . . . . . . . . . . . . . 3 . Kicked 4 | . 1 . . . . . . . . . . . . . . . 3 . Crushed . | . . . . . . . . . . . . . . . . . . . Highest Temperature 449 | . 72 90 . 2 1 . . . 4 4 8 430 375 133 288 449 244 338 Average Temperature 65 | . 25 24 . 2 1 . . . 2 2 2 184 94 42 51 109 77 113 Received Heat Transfer 1131 | . 228 54 . . 30 . . . . . 9 . 9 9 . . 162 630 Effects 4 | . . . . . . . . . . . . 1 2 . 1 . . . Shutdowns 2 | . . . . . . . . . . . . 1 1 . . . . . Energy Bleed 1 | . . . . . . . . . . . . . . . 1 . . . Interference 1 | . . . . . . . . . . . . . 1 . . . . . Siege Activations . | . . . . . . . . . . . . . . . . . . . Martial Activations . | . . . . . . . . . . . . . . . . . . . Shielding Activations 1 | . . . . . . . . . . . . . . . . . 1 . Total Turns 6 | . . . . . . . . . . . . . . . . . 6 . Longest Duration 6 | . . . . . . . . . . . . . . . . . 6 . Robots Disrupted . | . . . . . . . . . . . . . . . . . . . Combat Hostiles . | . . . . . . . . . . . . . . . . . . . Robots Corrupted 4 | . . . . . . . . . . . . . . . . . 4 . Combat Hostiles 4 | . . . . . . . . . . . . . . . . . 4 . Parts Fried 9 | . . . . . . . . . . . . . . . . . 7 2 Impact Corruptions . | . . . . . . . . . . . . . . . . . . . Robots Melted 1 | . . 1 . . . . . . . . . . . . . . . . Combat Hostiles 1 | . . 1 . . . . . . . . . . . . . . . . Parts Melted 5 | . . 2 . . . . . . . . . . . . . . . 3 Heat Transferred 2681 | . 150 1321 . . . . . . . . . . . . . . 100 1110 Parts Sabotaged 3 | . . . . . . . . . . . . . . . . . 3 . Parts Stolen . | . . . . . . . . . . . . . . . . . . . Parts Stripped . | . . . . . . . . . . . . . . . . . . . Power Chain Reactions 3 | . 2 . . . . . . . . . . . . . . . 1 . Alert | -11 -10 -10 -9 -6 -6 -6 -6 -5 -5 -5 -5 -4 -3 -3 -2 -2 -2 -1 ------- Run | Yrd Mat Sub Scr Fac Low Low Dat Pro Fac Was Fac Fac Res Qua Res Tes Frg Acc Maximum Alert Level 3 | . . . . . . . . . 2 1 3 2 1 2 2 2 1 2 Low Security (%) 60 | . 100 . . 100 . . . . 48 62 6 . 60 28 8 . 60 83 Level 1 20 | . . . . . . . . . 4 37 25 . 39 42 40 66 40 3 Level 2 16 | . . . . . . . . . 47 . 29 100 . 28 51 33 . 13 Level 3 2 | . . . . . . . . . . . 38 . . . . . . . Level 4 . | . . . . . . . . . . . . . . . . . . . Level 5 . | . . . . . . . . . . . . . . . . . . . High Security . | . . . . . . . . . . . . . . . . . . . Max Security . | . . . . . . . . . . . . . . . . . . . Peak Influence 1082 | . 116 . . 21 . . . . 699 224 1082 566 274 487 603 588 342 680 Initial 506 | . . . . . . . . . 69 224 100 506 268 90 267 339 324 160 Average 212 | . 48 . . 2 . . . . 318 188 576 511 195 298 371 408 190 153 Influence Increases 7093 | . 488 . . 34 90 347 29 221 822 . 1534 116 282 487 694 329 498 1122 Destroy 0b10 Robot/C 2740 | . 340 . . . 80 200 20 180 240 . 720 20 60 . 120 20 220 520 Destroy 0b10 Robot/NC 180 | . 15 . . 15 . . . . 5 . 35 5 20 . 25 15 . 45 Destroy Leader 496 | . 72 . . . 10 30 . 30 52 . 118 . 18 . 34 . 40 92 Allied During Kill 688 | . . . . 3 . 72 9 11 94 . 485 5 7 . . 2 . . Successful Hack 347 | . 24 . . . . . . . 28 . 13 9 64 94 47 22 22 24 Disable Machine 270 | . 15 . . 15 . . . . 15 . 15 15 . 45 45 60 15 30 Anti-Garrison Action 150 | . . . . . . . . . 150 . . . . . . . . . Destroy Structure 857 | . 7 . . 1 . . . . 88 . 118 2 68 18 153 . 66 336 Partial Spotted 300 | . . . . . . . . . . . 15 . 15 105 75 90 . . Lose Combat Pursuer 1065 | . 15 . . . . 45 . . 150 . 15 60 30 225 195 120 135 75 Influence Decreases 6413 | . 436 52 . 34 90 182 194 110 292 497 644 638 632 172 568 354 808 710 Entered New Map 2374 | . . 26 . . . . 165 . 42 417 44 528 244 72 210 264 254 108 Time Decay 2606 | . 426 16 . 28 90 162 9 90 130 80 170 50 278 80 278 80 294 345 Lost Part 567 | . 10 10 . . . . . . . . 10 . . 10 10 . 260 257 Lost Ally 866 | . . . . 6 . 20 20 20 120 . 420 60 110 10 70 10 . . Squads Dispatched 66 | . 3 . . 1 . . . . 9 . 8 . 13 4 10 4 7 7 Investigation 22 | . 2 . . . . . . . 4 . 1 . 7 . 4 1 3 . Extermination 12 | . . . . . . . . . 1 . 1 . 2 1 2 2 1 2 Reinforcement 24 | . 1 . . 1 . . . . 1 . 4 . 4 3 4 1 3 2 Assault 6 | . . . . . . . . . 2 . 2 . . . . . . 2 Garrison 2 | . . . . . . . . . 1 . . . . . . . . 1 Intercept . | . . . . . . . . . . . . . . . . . . . Searches Triggered . | . . . . . . . . . . . . . . . . . . . Construction Impeded 1 | . . . . 1 . . . . . . . . . . . . . . Haulers Reinforced 6 | . . . . . . . . . 1 . 1 . 2 . 1 . . 1 Active Scanning Responses . | . . . . . . . . . . . . . . . . . . . Cargo Convoy Interrupts . | . . . . . . . . . . . . . . . . . . . Stealth | -11 -10 -10 -9 -6 -6 -6 -6 -5 -5 -5 -5 -4 -3 -3 -2 -2 -2 -1 --------- Run | Yrd Mat Sub Scr Fac Low Low Dat Pro Fac Was Fac Fac Res Qua Res Tes Frg Acc Distress Signals 20 | . 1 . . . . . . . . . 4 . 1 1 5 . 3 5 Communications Jammed . | . . . . . . . . . . . . . . . . . . . Distress Signals . | . . . . . . . . . . . . . . . . . . . Times Spotted 283 | . 18 12 . 4 4 7 4 4 8 . 18 7 17 19 21 15 69 56 Peak Tracking Total 18 | . 3 2 . 3 3 3 3 4 6 . 6 4 13 11 7 11 18 14 Tactical Retreats 25 | . 1 . . . . 1 1 . 3 . 1 1 3 4 5 1 2 2 Traps | -11 -10 -10 -9 -6 -6 -6 -6 -5 -5 -5 -5 -4 -3 -3 -2 -2 -2 -1 ------- Run | Yrd Mat Sub Scr Fac Low Low Dat Pro Fac Was Fac Fac Res Qua Res Tes Frg Acc Traps Triggered 10 | . 2 . . . . . . . 1 . . . 1 1 . 2 2 1 Indirectly . | . . . . . . . . . . . . . . . . . . . Trap Hack Attempts . | . . . . . . . . . . . . . . . . . . . Triggered . | . . . . . . . . . . . . . . . . . . . Disarmed . | . . . . . . . . . . . . . . . . . . . Reprogrammed . | . . . . . . . . . . . . . . . . . . . Reused . | . . . . . . . . . . . . . . . . . . . Traps Extracted . | . . . . . . . . . . . . . . . . . . . Installed . | . . . . . . . . . . . . . . . . . . . Triggered . | . . . . . . . . . . . . . . . . . . . Most Traps Carried 1 | . . 1 . . . . . . . . . . . . . . . . Machines | -11 -10 -10 -9 -6 -6 -6 -6 -5 -5 -5 -5 -4 -3 -3 -2 -2 -2 -1 ---------- Run | Yrd Mat Sub Scr Fac Low Low Dat Pro Fac Was Fac Fac Res Qua Res Tes Frg Acc Machines Disabled 22 | . 1 1 . 1 . . 1 . 2 . 1 1 . 3 3 4 2 2 Max in Single Turn 1 | . 1 1 . 1 . . 1 . . . . 1 . 1 1 1 1 1 Garrison Access 4 | . . . . . . . . . 1 . . . 1 . . . 1 1 Machines Repaired . | . . . . . . . . . . . . . . . . . . . Machines Dismantled . | . . . . . . . . . . . . . . . . . . . Machines Sabotaged . | . . . . . . . . . . . . . . . . . . . Overloaded Fab Kills . | . . . . . . . . . . . . . . . . . . . Hacking | -11 -10 -10 -9 -6 -6 -6 -6 -5 -5 -5 -5 -4 -3 -3 -2 -2 -2 -1 --------- Run | Yrd Mat Sub Scr Fac Low Low Dat Pro Fac Was Fac Fac Res Qua Res Tes Frg Acc Machines Accessed 78 | . 1 2 3 . . 1 3 . 10 . 4 2 15 8 11 6 8 4 Terminals 42 | . 1 . . . . . . . 5 . 2 2 7 7 8 5 3 2 Fabricators 4 | . . . . . . . . . 1 . . . 2 . . 1 . . Repair Stations 1 | . . . . . . . . . . . . . . . . . . 1 Recycling Units 15 | . . . . . . . . . 3 . 1 . 4 . 3 . 3 1 Scanalyzers 4 | . . . . . . . . . . . 1 . 1 1 . . 1 . Garrison Access 3 | . . . . . . . . . 1 . . . 1 . . . 1 . Total Hacks 210 | . 4 4 25 . . 2 26 . 22 . 12 5 33 18 25 16 13 5 Successful 140 | . 4 4 25 . . 2 26 . 10 . 7 1 21 13 11 8 7 1 Failed 70 | . . . . . . . . . 12 . 5 4 12 5 14 8 6 4 Catastrophic 16 | . . . . . . . . . 3 . 1 2 2 1 1 2 2 2 Database Lockouts . | . . . . . . . . . . . . . . . . . . . Manual 121 | . 4 . . . . . . . 17 . 10 5 22 15 25 12 9 2 Terminals 105 | . 4 . . . . . . . 13 . 9 5 18 16 21 12 5 2 Fabricators 11 | . . . . . . . . . 2 . . . 5 . . 4 . . Repair Stations 2 | . . . . . . . . . . . . . . . . . . 2 Recycling Units 22 | . . . . . . . . . 5 . 1 . 6 . 4 . 5 1 Scanalyzers 8 | . . . . . . . . . . . 2 . 3 2 . . 1 . Garrison Access 5 | . . . . . . . . . 2 . . . 1 . . . 2 . Terminal Hacks 71 | . 4 4 25 . . 2 26 . 1 . 1 1 3 1 . 1 2 . Record 29 | . . 3 18 . . 2 6 . . . . . . . . . . . Part Schematic 13 | . . . . . . . 11 . . . . 1 . 1 . . . . Robot Schematic 6 | . . . . . . . 6 . . . . . . . . . . . Robot Analysis 8 | . 2 . 6 . . . . . . . . . . . . . . . Prototype ID Bank 5 | . 2 . . . . . 3 . . . . . . . . . . . Branch Access Points 1 | . . . . . . . . . . . . . 1 . . . . . Terminal Index 2 | . . . . . . . . . . . 1 . . . . 1 . . Extermination Status 1 | . . . . . . . . . . . . . 1 . . . . . Recall Extermination 1 | . . . . . . . . . . . . . 1 . . . . . Hauler Manifests 1 | . . . . . . . . . 1 . . . . . . . . . Zone Layout 1 | . . . . . . . . . . . . . . . . . 1 . Proto ID Catalog 3 | . . 1 1 . . . . . . . . . . . . . 1 . Fabricator Hacks 9 | . . . . . . . . . 2 . . . 4 . . 3 . . Network Status 3 | . . . . . . . . . 1 . . . 1 . . 1 . . Load Schematic 3 | . . . . . . . . . . . . . 2 . . 1 . . Build 3 | . . . . . . . . . 1 . . . 1 . . 1 . . Repair Station Hacks . | . . . . . . . . . . . . . . . . . . . Recycling Unit Hacks . | . . . . . . . . . . . . . . . . . . . Scanalyzer 6 | . . . . . . . . . . . 1 . 3 2 . . . . Insert Component 4 | . . . . . . . . . . . 1 . 2 1 . . . . Analyze 2 | . . . . . . . . . . . . . 1 1 . . . . Garrison Access Hacks 2 | . . . . . . . . . . . . . 1 . . . 1 . Seal Access 2 | . . . . . . . . . . . . . 1 . . . 1 . Unauthorized Hacks 51 | . . . . . . . . . 7 . 5 . 10 10 11 4 4 . Terminals 39 | . . . . . . . . . 5 . 4 . 6 10 8 4 2 . Track 2 | . . . . . . . . . . . . . . 1 . . 1 . Assimilate 5 | . . . . . . . . . . . . . 1 1 1 2 . . Botnet 13 | . . . . . . . . . 2 . 2 . 2 3 2 1 1 . Skim 19 | . . . . . . . . . 3 . 2 . 3 5 5 1 . . Fabricators . | . . . . . . . . . . . . . . . . . . . Repair Stations . | . . . . . . . . . . . . . . . . . . . Recycling Units 11 | . . . . . . . . . 2 . 1 . 4 . 3 . 1 . Fedlink 11 | . . . . . . . . . 2 . 1 . 4 . 3 . 1 . Scanalyzers 1 | . . . . . . . . . . . . . . . . . 1 . Researchers 1 | . . . . . . . . . . . . . . . . . 1 . Garrison Access . | . . . . . . . . . . . . . . . . . . . Data Cores Recovered 1 | . . . . 1 . . . . . . . . . . . . . . Used . | . . . . . . . . . . . . . . . . . . . Hacking Detections 56 | . 1 . . . . . . . 8 . 3 1 11 8 9 6 6 3 Full Trace Events 6 | . . . . . . . . . 1 . . . 2 . . 1 2 . Feedback Events 2 | . . . . . . . . . . . . . 1 . . . 1 . Corruption 2 | . . . . . . . . . . . . . 1 . . . 1 . Feedback Blocked 1 | . . . . . . . . . . . . . . . . . 1 . Robot Schematics Acquired 7 | . . . . . . . 6 . . . . . . . . . 1 . Robots Built . | . . . . . . . . . . . . . . . . . . . Authchips . | . . . . . . . . . . . . . . . . . . . Time 40 | . . . . . . . . . 40 . . . . . . . . . Total Robot Build Rating . | . . . . . . . . . . . . . . . . . . . Part Schematics Acquired 18 | . . . . . . . 11 . . . . 1 1 2 . . 3 . Parts Built 4 | . . . . . . . . . . . . . 2 . . 2 . . Authchips 1 | . . . . . . . . . . . . . 1 . . . . . Time 108 | . . . . . . . . . . . . . 39 . . 69 . . Total Part Build Rating 32 | . . . . . . . . . . . . . 14 . . 18 . . Parts Repaired . | . . . . . . . . . . . . . . . . . . . Time . | . . . . . . . . . . . . . . . . . . . Parts Recycled . | . . . . . . . . . . . . . . . . . . . Recycled Matter . | . . . . . . . . . . . . . . . . . . . Retrieved Matter . | . . . . . . . . . . . . . . . . . . . Retrieved Components . | . . . . . . . . . . . . . . . . . . . Parts Scanalyzed 2 | . . . . . . . . . . . . . 1 1 . . . . Part Schematics Acquired 2 | . . . . . . . . . . . . . 1 1 . . . . Parts Damaged . | . . . . . . . . . . . . . . . . . . . Bothacking | -11 -10 -10 -9 -6 -6 -6 -6 -5 -5 -5 -5 -4 -3 -3 -2 -2 -2 -1 ------------ Run | Yrd Mat Sub Scr Fac Low Low Dat Pro Fac Was Fac Fac Res Qua Res Tes Frg Acc Used RIF Installer . | . . . . . . . . . . . . . . . . . . . Robots Hacked . | . . . . . . . . . . . . . . . . . . . Non-combat . | . . . . . . . . . . . . . . . . . . . Combat . | . . . . . . . . . . . . . . . . . . . Robot Hacks Applied . | . . . . . . . . . . . . . . . . . . . Relay Couplers Released 1 | . . . . . . . . . 1 . . . . . . . . . Machine Destruction 1 | . . . . . . . . . 1 . . . . . . . . . Fabnet Peak Effective % . | . . . . . . . . . . . . . . . . . . . Robots Rewired 1 | . . . . . . . . . . . . . . . . 1 . . Allies Hacked 1 | . . . . . . . . . . . . . . 1 . . . . Hacks Repelled . | . . . . . . . . . . . . . . . . . . . Allies | -11 -10 -10 -9 -6 -6 -6 -6 -5 -5 -5 -5 -4 -3 -3 -2 -2 -2 -1 -------- Run | Yrd Mat Sub Scr Fac Low Low Dat Pro Fac Was Fac Fac Res Qua Res Tes Frg Acc Total Allies 73 | . . 8 . . . 5 . 6 5 20 10 2 7 1 7 2 . . Largest Group 20 | . . 5 4 4 . 4 4 3 4 20 20 7 3 1 5 2 . . Highest-Rated Group 775 | . . 95 76 76 . 318 314 243 324 701 775 333 243 45 328 149 . . Highest-Rated Ally 123 | . . 19 19 19 . 81 81 81 81 50 81 81 81 45 81 123 . . Total Orders . | . . . . . . . . . . . . . . . . . . . Ally Attacks 384 | . . 16 . 15 . 20 17 17 33 . 194 10 27 . 33 2 . . Total Damage 12933 | . . 207 . 260 . 721 232 658 1853 . 5392 449 1087 . 1900 174 . . Kills 87 | . . 1 . . . 10 1 5 13 . 41 2 4 . 9 1 . . Allies Corrupted 1 | . . . . . . . . . . . 1 . . . . . . . Allies Melted 2 | . . . . . . . . . . . 1 . . . . . 1 . Intel | -11 -10 -10 -9 -6 -6 -6 -6 -5 -5 -5 -5 -4 -3 -3 -2 -2 -2 -1 ------- Run | Yrd Mat Sub Scr Fac Low Low Dat Pro Fac Was Fac Fac Res Qua Res Tes Frg Acc Active Infowar (turns) 9587 | . 1015 3456 . 214 473 478 214 328 264 161 341 101 605 160 600 123 385 669 Optics 3543 | . . . . 183 473 478 214 328 264 161 341 101 259 . . . 242 499 Sensors 3994 | . . . . . 447 449 38 326 264 161 341 101 604 160 597 120 143 243 IFF 170 | . . . . . . . . . . . . . . . . . . 170 Structural 6942 | . 1015 3456 . 35 69 183 43 152 1 . . 21 585 160 600 114 40 468 Seismic 229 | . . . . 213 16 . . . . . . . . . . . . . Jamming 107 | . . . . . . . . . . . . . . . . 5 102 . ECM 21 | . . . . . . . . . . . . . 21 . . . . . Robot Analysis Total 8 | . 2 . 6 . . . . . . . . . . . . . . . Derelict Logs Recovered 11 | . . 2 3 . 2 2 . 2 . . . . . . . . . . Drone Launches . | . . . . . . . . . . . . . . . . . . . Drone Recoveries . | . . . . . . . . . . . . . . . . . . . Exploration | -11 -10 -10 -9 -6 -6 -6 -6 -5 -5 -5 -5 -4 -3 -3 -2 -2 -2 -1 ------------- Run | Yrd Mat Sub Scr Fac Low Low Dat Pro Fac Was Fac Fac Res Qua Res Tes Frg Acc Turns Passed 17588 | . 1218 5976 4761 219 473 478 214 328 264 161 341 101 607 160 612 166 640 869 Spaces Moved 14298 | 1 438 1852 2118 339 698 875 167 570 562 265 697 240 1379 518 1602 478 806 693 Core 245 | . . . 143 . . . . . . . . . . . . 1 . 101 Treads 4019 | . 309 1852 1858 . . . . . . . . . . . . . . . Legs 893 | 1 129 . . . . . . . . . . . . . . . 171 592 Wheels 138 | . . . 117 . . . . . . . . . . . . . 21 . Hover . | . . . . . . . . . . . . . . . . . . . Flight 9003 | . . . . 339 698 875 167 570 562 265 697 240 1379 518 1602 477 614 . Fastest Speed 5 | 120 120 240 50 30 32 32 32 32 28 28 28 31 18 18 10 5 6 50 Average Speed 100 | 120 194 311 220 31 32 32 42 32 28 28 29 31 24 18 17 11 41 83 Slowest Speed 320 | 120 240 320 240 34 34 32 93 93 32 28 31 31 114 18 20 250 260 180 Overloaded Moves 133 | . . . . . . . . . . . . . 12 . . 36 85 . Propulsion Burnouts . | . . . . . . . . . . . . . . . . . . . Robots Hopped 17 | . . . . . 1 1 . . 1 . . . . 2 6 4 2 . Potential Cave-ins 27 | . . . . . . . . . . . . . . . 3 . 24 . Cave-ins Triggered 3 | . . . . . . . . . . . . . . . . . 3 . Teleports 1 | . . . . . . . . . . . . . . . . . 1 . Exploration Rate (%) 53 | 2 68 82 88 6 84 93 82 70 15 95 21 6 47 81 42 73 48 16 Regions Visited 18 Branch Regions 9 Pre-discovered Areas 10 | . . 1 6 . . 1 1 . 1 . . . . . . . . . Known Exits Taken 13 | . . . 1 1 1 1 1 1 . . 1 1 1 1 1 1 1 . Unknown Exits Taken 3 | 1 1 1 . . . . . . . . . . . . . . . . Scrap Searched 30 | . . 15 7 . 3 1 . 4 . . . . . . . . . . Spaces Dug 93 | . . 12 . . 2 1 . 2 4 . 2 . 21 9 28 . 4 8 Terrain Destroyed 391 | . 6 53 . . 45 1 . 28 4 . 2 . 24 9 31 . 23 165 Melee 66 | . . . . . . . . 1 4 . 2 . 18 8 26 . 4 3 Projectile 46 | . . 5 . . 5 1 . 3 . . . . 6 1 5 . 5 15 AOE 279 | . 6 48 . . 40 . . 24 . . . . . . . . 14 147 Terrain Rammed . | . . . . . . . . . . . . . . . . . . . Walls Destroyed . | . . . . . . . . . . . . . . . . . . . Machines Disabled . | . . . . . . . . . . . . . . . . . . . Actions | -11 -10 -10 -9 -6 -6 -6 -6 -5 -5 -5 -5 -4 -3 -3 -2 -2 -2 -1 --------- Run | Yrd Mat Sub Scr Fac Low Low Dat Pro Fac Was Fac Fac Res Qua Res Tes Frg Acc Total 16847 | . 717 1982 2208 445 927 1064 275 701 654 330 815 260 1592 564 1857 567 1035 854 Wait 1606 | . 192 37 26 61 197 179 72 110 76 50 77 10 121 20 180 40 119 39 Move 14245 | . 437 1851 2117 338 695 872 166 569 560 264 696 239 1378 513 1589 470 798 693 Hop 16 | . . . . . 1 1 . . 1 . . . . 2 6 3 2 . Pick Up 129 | . 18 18 36 6 4 1 3 1 4 1 10 1 8 4 4 2 3 5 Fast Attach 76 | . 3 . 5 . . . . 1 . . 1 2 8 . 4 3 26 23 Attach 61 | . 1 2 1 14 5 . 5 2 3 . 1 . 2 1 4 1 7 12 Detach 21 | . . . . 2 5 1 3 3 . . . . 1 . 1 . 5 . Swap 108 | . 7 9 4 6 3 2 1 3 1 . 6 3 18 3 13 12 12 5 Drop 119 | . 9 16 19 11 1 1 2 2 1 1 12 2 15 4 7 7 8 1 Fire 227 | . 48 49 . . 16 7 . 8 . . . . 6 1 5 . 33 54 Melee 195 | . . . . 7 . . 23 2 8 14 12 2 35 12 44 10 4 22 Ram . | . . . . . . . . . . . . . . . . . . . Kick 4 | . 1 . . . . . . . . . . . . . . . 3 . Crush 1 | . 1 . . . . . . . . . . . . . . . . . Escape Stasis 37 | . . . . . . . . . . . . . . 4 . 18 15 . Rewire 1 | . . . . . . . . . . . . . . . . 1 . . Trap . | . . . . . . . . . . . . . . . . . . . Miscellaneous 1 | . . . . . . . . . . . . 1 . . . . . . Route ------- -11/Scrapyard -10/Materials (discovered 6 exits: [*Mat x3] / [*Min x2] / *Sub) -10/Subcaves (discovered 3 exits: [*Mat x2] / *Scr) -9/Scraptown (discovered 2 exits: *Fac x2) -6/Factory (discovered 4 exits: Fac x3 / *Low) -6/Lower Caves -6/Lower Caves (discovered 2 exits: *Fac / *Dat) -6/Data Miner -5/Proximity Caves -5/Factory -5/Waste -5/Factory -4/Factory (discovered 5 exits: *Res x4 / Ext) -3/Research (discovered 5 exits: *Res x2 / Arm / *Qua x2) -3/Quarantine -2/Research (discovered 3 exits: *Acc x2 / *Tes) -2/Testing (discovered 2 exits: [*Sec] / *Frg) -2/Protoforge -1/Access History --------- Turn | Location | Event 1 | -11/Scrapyard | Discovered new exit (range 0) 1 | -11/Scrapyard | Entered Materials 4 | -10/Materials | Discovered new exit (range 15) 141 | -10/Materials | Discovered new exit (range 10) 300 | -10/Materials | Build established: Mutant 340 | -10/Materials | Discovered new exit (range 10) 850 | -10/Materials | Discovered new exit (range 13) 952 | -10/Materials | Discovered new exit (range 11) 1187 | -10/Materials | Discovered new exit (range 11) 1219 | -10/Materials | Entered Subcaves 1220 | -10/Subcaves | Approached by a straggling Scientist 1389 | -10/Subcaves | Shifting Twisted Machinery released Shrapnel Trap 1395 | -10/Subcaves | Shifting Twisted Machinery released Sub. Power Source 1738 | -10/Subcaves | Scientist uncovered a shortcut to Scraptown 1828 | -10/Subcaves | Core integrity fell below 50% 1923 | -10/Subcaves | A swath of the cavern ceiling suddenly collapsed 2039 | -10/Subcaves | Learned Materials trap positions 2065 | -10/Subcaves | Disturbed a concealed Subdweller 2793 | -10/Subcaves | Visited Clippyterm 2803 | -10/Subcaves | Learned location of Section 7 (-2) 3187 | -10/Subcaves | Discovered new exit (range 13) 3695 | -10/Subcaves | Discovered new exit (range 5) 3851 | -10/Subcaves | Shifting Twisted Machinery released Riot Gun 4656 | -10/Subcaves | Visited triangular shrine 4675 | -10/Subcaves | Found Prototype Device 4675 | -10/Subcaves | Identified V3-11A's Pendant 4680 | -10/Subcaves | Befriended Subdweller 4750 | -10/Subcaves | Shifting Twisted Machinery released Flamer 4946 | -10/Subcaves | Approached by friendly Subdweller 4965 | -10/Subcaves | Befriended Subdweller 5010 | -10/Subcaves | Befriended Subdweller 5015 | -10/Subcaves | Befriended Subdweller 5075 | -10/Subcaves | Befriended Subdweller 5099 | -10/Subcaves | Learned 2 Materials zone layouts 5212 | -10/Subcaves | A swath of the cavern ceiling suddenly collapsed 5995 | -10/Subcaves | Befriended Subdweller 6396 | -10/Subcaves | Visited 4L-MR0's lab 6449 | -10/Subcaves | Found Flightbrick 7085 | -10/Subcaves | Ambushed by Subdweller buried in earth 7090 | -10/Subcaves | Befriended Subdweller 7195 | -10/Subcaves | Entered Scraptown 7195 | -9/Scraptown | Accompanied by 4 allies 7387 | -9/Scraptown | Scanned Subdweller tech in exchange for log data 7395 | -9/Scraptown | Learned location of Zion (-7) 7397 | -9/Scraptown | Learned location of Testing (-2) 7400 | -9/Scraptown | Learned location of 1 exit from Research 7433 | -9/Scraptown | Discovered new exit (range 13) 7740 | -9/Scraptown | Heard Great Nut preacher, LISTEN AND RECITE! 7980 | -9/Scraptown | Delivered V3-11A's Pendant to T0-NE2 in exchange for information 8148 | -9/Scraptown | Visited UFD Registry 8148 | -9/Scraptown | Registered with UFD as "Zerofunk" 8344 | -9/Scraptown | Delivered Scrap Shield to a Scientist 8659 | -9/Scraptown | Visited Cartography Club 8798 | -9/Scraptown | Visited Symbiants 8817 | -9/Scraptown | Visited Spacefarers 8848 | -9/Scraptown | Visited Red Mages 8884 | -9/Scraptown | Visited Fellowship of the Rings 8940 | -9/Scraptown | Visited The Evicted 9799 | -9/Scraptown | Visited Chapter 10 9844 | -9/Scraptown | Visited Science Testing Area 9883 | -9/Scraptown | Visited DA-N13 Charitable Foundation 9907 | -9/Scraptown | Found DCF Scrap (28 items) 10750 | -9/Scraptown | Visited Awakened 10954 | -9/Scraptown | Visited Science Guys 11028 | -9/Scraptown | Visited Research Penetration Think Tank 11078 | -9/Scraptown | Visited Scrap Suit Storage 11138 | -9/Scraptown | Visited Curators Association 11234 | -9/Scraptown | Visited Analyses Database 11417 | -9/Scraptown | Released all parts (6) 11470 | -9/Scraptown | Found Deep Structural Scanner 11476 | -9/Scraptown | Learned location of Hub_04(d) (-4) 11476 | -9/Scraptown | Learned location of Quarantine (-3) 11476 | -9/Scraptown | Learned 12 Factory zone layouts 11476 | -9/Scraptown | Learned 12 Research zone layouts 11476 | -9/Scraptown | Learned 16 Research zone layouts 11476 | -9/Scraptown | Learned 20 Lower Caves zone layouts 11476 | -9/Scraptown | Learned 16 Upper Caves zone layouts 11476 | -9/Scraptown | Learned 8 Proximity Caves zone layouts 11476 | -9/Scraptown | Learned 16 Proximity Caves zone layouts 11476 | -9/Scraptown | Learned 4 Hub_04(d) zone layouts 11476 | -9/Scraptown | Learned location of 2 exits from Lower Caves 11476 | -9/Scraptown | Learned location of 1 exit from Upper Caves 11476 | -9/Scraptown | Learned location of 2 exits from Upper Caves 11476 | -9/Scraptown | Identified exit to Factory 11878 | -9/Scraptown | Met Optimus 11878 | -9/Scraptown | Accepted into 0bPrime 11956 | -9/Scraptown | Entered Factory 11956 | -6/Factory | Accompanied by 4 allies 11956 | -6/Factory | Evolved 8 slots: Propulsion x4, Utility x4 11957 | -6/Factory | Identified exit to Factory 11958 | -6/Factory | Identified exit to Lower Caves 11959 | -6/Factory | Attached Flightbrick, gained temporary slots: Utility x3 12175 | -6/Factory | Entered Lower Caves 12176 | -6/Lower Caves | Identified exit to Lower Caves 12177 | -6/Lower Caves | UFD Scientist delivered a prototype 12187 | -6/Lower Caves | Found Prototype Protection 12204 | -6/Lower Caves | Lost 4 allies 12213 | -6/Lower Caves | Learned Factory stockpile data 12365 | -6/Lower Caves | Learned 8 Factory zone layouts 12495 | -6/Lower Caves | Build established: Scout 12638 | -6/Lower Caves | Spotted B-75 Beast 12648 | -6/Lower Caves | Entered another Lower Caves area 12649 | -6/Lower Caves | Identified exit to Data Miner 12655 | -6/Lower Caves | Discovered exit to Factory (range 3) 12659 | -6/Lower Caves | Learned Factory stockpile data 12667 | -6/Lower Caves | Entered a destroyed Warlord outpost 12739 | -6/Lower Caves | Prototype Device suddenly appears! 12740 | -6/Lower Caves | Found Prototype Device 12740 | -6/Lower Caves | Identified Amulet of Y3-NDR 12756 | -6/Lower Caves | Joined by bewildered Wizard 12756 | -6/Lower Caves | Joined by bewildered Wizard 12861 | -6/Lower Caves | Joined by bewildered Wizard 12864 | -6/Lower Caves | Joined by bewildered Wizard 12918 | -6/Lower Caves | Joined by bewildered Wizard 13126 | -6/Lower Caves | Entered Data Miner 13126 | -6/Data Miner | Accompanied by 4 allies 13126 | -6/Data Miner | Discovered new exit (range 6) 13132 | -6/Data Miner | Met Data Miner 13141 | -6/Data Miner | Acquired the access code to Warlord's prototype stash 13143 | -6/Data Miner | Received God Mode back door access code from Data Miner 13153 | -6/Data Miner | Destroyed Data Miner 13157 | -6/Data Miner | Found Prototype Hackware 13159 | -6/Data Miner | Found Prototype Hackware 13160 | -6/Data Miner | Data Conduit disabled 13201 | -6/Data Miner | Lost 4 allies 13338 | -6/Data Miner | Identified exit to Proximity Caves 13340 | -6/Data Miner | Entered Proximity Caves 13457 | -5/Proximity Caves | Joined by bewildered Wizard 13457 | -5/Proximity Caves | Joined by bewildered Wizard 13457 | -5/Proximity Caves | Joined by bewildered Wizard 13507 | -5/Proximity Caves | Lost 3 allies 13552 | -5/Proximity Caves | Learned Factory stockpile data 13619 | -5/Proximity Caves | Build established: Derelict-Scout 13621 | -5/Proximity Caves | Joined by bewildered Wizard 13622 | -5/Proximity Caves | Joined by bewildered Wizard 13668 | -5/Proximity Caves | Entered Factory 13668 | -5/Factory | Accompanied by 2 allies 13668 | -5/Factory | Evolved 2 slots: Power x1, Propulsion x1 13669 | -5/Factory | Identified exit to Upper Caves 13697 | -5/Factory | Loaded intel: 8 recycling unit locations 13700 | -5/Factory | Learned location of Protoforge (-2) 13712 | -5/Factory | Joined by bewildered Wizard 13712 | -5/Factory | Joined by bewildered Wizard 13798 | -5/Factory | Garrison activated, responded to threat 13843 | -5/Factory | Lost 4 allies 13932 | -5/Factory | Manually triggered Chute Trap 13932 | -5/Factory | Sucked down chute 13932 | -5/Factory | Entered Waste 13933 | -5/Waste | Joined by Warlord forces that had cleared the area 14008 | -5/Waste | Discovered new exit (range 12) 14042 | -5/Waste | Identified exit to Factory 14093 | -5/Waste | Entered Factory 14093 | -5/Factory | Accompanied by 20 allies 14146 | -5/Factory | Lost 4 allies 14159 | -5/Factory | Loaded intel: 8 recycling unit locations 14193 | -5/Factory | Joined by bewildered Wizard 14193 | -5/Factory | Joined by bewildered Wizard 14193 | -5/Factory | Joined by bewildered Wizard 14193 | -5/Factory | Joined by bewildered Wizard 14219 | -5/Factory | Joined by bewildered Wizard 14219 | -5/Factory | Joined by bewildered Wizard 14250 | -5/Factory | Lost 6 allies 14299 | -5/Factory | Lost 3 allies 14326 | -5/Factory | Discovered new exit (range 7) 14328 | -5/Factory | Identified exit to Factory 14393 | -5/Factory | First assault squad dispatched 14400 | -5/Factory | Identified Deep Network Scanner 14434 | -5/Factory | Entered another Factory area 14434 | -4/Factory | Accompanied by 5 allies 14434 | -4/Factory | Evolved 2 slots: Propulsion x1, Utility x1 14435 | -4/Factory | Identified exit to Research 14435 | -4/Factory | Identified exit to Extension 14437 | -4/Factory | Found Prototype Processor 14437 | -4/Factory | Identified Exp. Signal Interpreter 14503 | -4/Factory | Joined by bewildered Wizard 14503 | -4/Factory | Joined by bewildered Wizard 14522 | -4/Factory | Discovered exit to Research (range 17) 14535 | -4/Factory | Entered Research 14535 | -3/Research | Evolved 2 slots: Propulsion x1, Utility x1 14536 | -3/Research | Identified exit to Armory 14537 | -3/Research | Identified exit to Quarantine 14537 | -3/Research | Identified exit to Research 14545 | -3/Research | Loaded intel: 4 recycling unit locations 14548 | -3/Research | Joined by bewildered Wizard 14548 | -3/Research | Joined by bewildered Wizard 14555 | -3/Research | Identified System Mapper 14612 | -3/Research | Found Prototype Device 14612 | -3/Research | Identified Exp. ECM Suite 14648 | -3/Research | Fabricated Adv. Power Amplifier (x2) 14686 | -3/Research | Spotted B-86 Titan 14720 | -3/Research | Joined by bewildered Wizard 14721 | -3/Research | Found Exp. Signal Interpreter 14840 | -3/Research | Spotted B-86 Titan 14881 | -3/Research | Found Gamma Bomb Array 14958 | -3/Research | Found Fusion Bomb Launcher 14995 | -3/Research | Discovered exit to Research (range 12) 15142 | -3/Research | Entered Quarantine 15194 | -3/Quarantine | Found Alien Artifact 15197 | -3/Quarantine | Found Alien Artifact 15227 | -3/Quarantine | Found Alien Artifact 15247 | -3/Quarantine | Discovered exit to Research (range 16) 15254 | -3/Quarantine | Cryocooling Duct disabled 15269 | -3/Quarantine | Ambient heat levels rising (+20) 15269 | -3/Quarantine | Non-combat units ordered to evacuate 15302 | -3/Quarantine | Entered Research 15302 | -2/Research | Evolved 2 slots: Power x1, Propulsion x1 15330 | -2/Research | Found Prototype Processor 15330 | -2/Research | Identified Exp. Melee Analysis Suite 15333 | -2/Research | Found Exp. Melee Analysis Suite 15334 | -2/Research | Found Exp. Melee Analysis Suite 15346 | -2/Research | Loaded intel: 4 recycling unit locations 15349 | -2/Research | Discovered new exit (range 18) 15358 | -2/Research | Identified exit to Access 15376 | -2/Research | Build established: Hacker-Scout 15424 | -2/Research | Joined by bewildered Wizard 15427 | -2/Research | Joined by bewildered Wizard 15472 | -2/Research | Found Prototype Processor 15472 | -2/Research | Identified Exp. Core Analyzer 15478 | -2/Research | Discovered exit to Access (range 13) 15900 | -2/Research | Discovered new exit (range 16) 15914 | -2/Research | Identified exit to Testing 15914 | -2/Research | Entered Testing 15915 | -2/Testing | Spotted PY-0PQRIMESHB 15922 | -2/Testing | Rewired PL-SINI2GC2FG 15924 | -2/Testing | Found Exp. Core Analyzer 15936 | -2/Testing | Found Prototype Energy Cannon 15936 | -2/Testing | Identified Hpw. Disruptor Cannon 15945 | -2/Testing | Found Prototype Ballistic Gun 15945 | -2/Testing | Identified Hyp. Multirail 15974 | -2/Testing | Found Prototype Device 15974 | -2/Testing | Identified Exp. Hardlight Generator 16050 | -2/Testing | Spotted Fortress 16062 | -2/Testing | Discovered new exit (range 6) 16062 | -2/Testing | Discovered new exit (range 7) 16063 | -2/Testing | Identified exit to Protoforge 16070 | -2/Testing | Fabricated Adv. Cloaking Device? 16080 | -2/Testing | Entered Protoforge 16152 | -2/Protoforge | Discovered exit to Access (range 16) 16156 | -2/Protoforge | Identified Dimensional Node Initializer 16156 | -2/Protoforge | Initialized slip node 16174 | -2/Protoforge | Identified Terrabomb 16174 | -2/Protoforge | Used Terrabomb 16174 | -2/Protoforge | Additional patrols dispatched to research labs 16174 | -2/Protoforge | Superfortress began startup sequence 16176 | -2/Protoforge | Crushed by falling debris 16177 | -2/Protoforge | Crushed by falling debris 16178 | -2/Protoforge | System corruption reached 10% 16182 | -2/Protoforge | Crushed by falling debris 16187 | -2/Protoforge | Spotted Immortal 16187 | -2/Protoforge | Spotted Immortal 16192 | -2/Protoforge | Scanned by Researcher 16213 | -2/Protoforge | Lost 8 parts (1p3n4u) 16215 | -2/Protoforge | Spotted Hotshot 16215 | -2/Protoforge | Spotted Hotshot 16216 | -2/Protoforge | Spotted Decapitator 16216 | -2/Protoforge | Spotted Decapitator 16216 | -2/Protoforge | Spotted Decapitator 16219 | -2/Protoforge | Found Prototype Device 16219 | -2/Protoforge | Identified Crosscalibrator 16221 | -2/Protoforge | Spotted Hotshot 16221 | -2/Protoforge | Spotted Hotshot 16221 | -2/Protoforge | Spotted Hotshot 16222 | -2/Protoforge | Spotted Hotshot 16298 | -2/Protoforge | Lost 8 parts (2p5n1u) 16337 | -2/Protoforge | Core integrity fell below 50% 16348 | -2/Protoforge | UFD initiated attack on Protoforge 16348 | -2/Protoforge | Loaded intel: 3 recycling unit locations 16354 | -2/Protoforge | Spotted EXE-6 16354 | -2/Protoforge | Spotted EXE-6 16366 | -2/Protoforge | Lost 3 parts (3u) 16384 | -2/Protoforge | Optimus greeted in Protoforge 16402 | -2/Protoforge | Lost 3 allies 16409 | -2/Protoforge | Found Prototype Processor 16409 | -2/Protoforge | Identified Exp. Armor Integrity Analyzer 16412 | -2/Protoforge | Found Cep. XC Strikerail 16415 | -2/Protoforge | Found Exp. Core Analyzer 16417 | -2/Protoforge | Found Cep. XC Strikerail 16423 | -2/Protoforge | Found Exp. Core Analyzer 16483 | -2/Protoforge | Found Cep. XC Strikerail 16507 | -2/Protoforge | Found Cep. XC Strikerail 16529 | -2/Protoforge | Met 7R-MNS 16530 | -2/Protoforge | Lost 3 allies 16548 | -2/Protoforge | Spotted AP7-3 16567 | -2/Protoforge | Spotted AP7-3 16606 | -2/Protoforge | Spotted Overlord 16607 | -2/Protoforge | Spotted B-90 Cyclops 16610 | -2/Protoforge | Lost 6 allies 16645 | -2/Protoforge | Spotted Hotshot 16650 | -2/Protoforge | Spotted Hotshot 16662 | -2/Protoforge | System corruption reached 30% 16664 | -2/Protoforge | Spotted Executioner 16670 | -2/Protoforge | Spotted Striker 16674 | -2/Protoforge | Spotted Striker 16677 | -2/Protoforge | Spotted Striker 16680 | -2/Protoforge | Spotted Striker 16680 | -2/Protoforge | Spotted Striker 16685 | -2/Protoforge | Destroyed Executioner 16690 | -2/Protoforge | Destroyed Striker 16690 | -2/Protoforge | Destroyed Striker 16706 | -2/Protoforge | Identified Hpw. Transdimensional Reconstructor 16706 | -2/Protoforge | Warped through subspace to slip node 16707 | -2/Protoforge | Core integrity fell below 20% 16713 | -2/Protoforge | Lost 5 allies 16713 | -2/Protoforge | Spotted Executioner 16713 | -2/Protoforge | Spotted Executioner 16720 | -2/Protoforge | Entered Access 16720 | -1/Access | Evolved 2 slots: Weapon x2 16721 | -1/Access | Destroyed 10 combat bots 16750 | -1/Access | Lost 6 parts (2p2n2u) 17196 | -1/Access | Garrison activated, responded to threat 17249 | -1/Access | System corruption reached 10% 17326 | -1/Access | Lost 21 parts (5p5n7u4w) 17326 | -1/Access | System corruption reached 30% 17495 | -1/Access | Destroyed 12 combat bots 17500 | -1/Access | Lost 6 parts (1p2n1u2w) 17537 | -1/Access | Released all parts (12) 17548 | -1/Access | Destroyed 8 combat bots 17563 | -1/Access | Core integrity fell below 50% 17567 | -1/Access | Lost 6 parts (2n4w) 17572 | -1/Access | Core integrity fell below 20% 17589 | -1/Access | Destroyed by Swarm Drone with Compact Gauss Rifle Last Messages --------------- 17547_ The unstable cave ceiling collapses. 17548_ U-05 Engineer builds a Wall. 17549_ The unstable cave ceiling collapses. 17552_ U-05 Engineer lays Concrete. 17554_ Critical hit (Burn: +37). 17555_ U-05 Engineer builds a Wall. 17556_ Penetrated by Slug. 17557_ Slug penetrates Wall. 17562_ Penetrated by Slug. 17564_ Slug penetrates Swarm Drone. 17565_ System corrupted: Heat flow error (+268). 17565_ Triggered Hellfire Trap. 17565_ An explosion rips through the floor. 17566_ Slug penetrates T-07 Excavator. 17566_ Penetrated by Slug. 17572_ Slug penetrates Wall. 17574_ Penetrated by Slug. 17581_ System corrupted: Energy discharge (-34). 17582_ Slug penetrates Wall. 17583_ Penetrated by Slug. Map ----- +----------------------------------------------------+ | ?????????????? ??????????????????? | | ???????????????##+######### ?????????????????? | | ??????????????? ##### # ???????????? | | ??????????????? ##### ####???????????? | | ??????????????? ##### ####???????????? | | ???????????????????????????? ####???????????? | | ???????????????????????????? ####???????????? | | ????????????##############??? ####???????????? | | ????????????# ?? ???????????? | | ????????????# ??? ???????????? | | ????????????# ??? ???????????? | | ????????????# ??? ????????????????? | | ????????????# ??????????????????????? | | ????????????# ???????????????????????? | | ?????######## ??????????????????????????? | | ?????# #????????????????????????????? | | ?????# #????????????????????????????? | | ?????# #????????????????????????????? | | ?????+ #????????????????????????????? | | ?????# #????????????????????????????? | | ?????# #????????????????????????????? | | ###### #????????????????????????????? | | ###+############????????????????????? | | # nn !#????????????????????? | | # n ! #????????????????????? | | # n @ #????????????????????? | | # ] #????????????????????? | | # #????????????????????? | | # #????????????????????? | | #########++##################????????????????????? | | ?????????????????????????????????????????????????? | | ?????????????????????????????????????????????????? | | ?????????????????????????????????????????????????? | | ?????????????????????????????????????????????????? | | ?????????????????????????????????????????????????? | | ?????????????????????????????????????????????????? | | ?????????????????????????????????????????????????? | | ?????????????????????????????????????????????????? | | ?????????????????????????????????????????????????? | | ?????????????????????????????????????????????????? | | ?????????????????????????????????????????????????? | | ?????????????????????????????????????????????????? | | ?????????????????????????????????????????????????? | | ?????????????????????????????????????????????????? | | ?????????????????????????????????????????????????? | | ?????????????????????????????????????????????????? | | ?????????????????????????????????????????????????? | | ?????????????????????????????????????????????????? | | ?????????????????????????????????????????????????? | | ?????????????????????????????????????????????????? | +----------------------------------------------------+ Best States ------------- Heat Dissipation 87 Energy Generation 54 Energy Capacity 1690 Matter Stores 300 Matter Capacity 300 Sight Range 23 Robot Scan Range 18 Terrain Scan Density 10 ECM Strength 3 Jamming Range 14 Power Amplification 30 Additional Mass Support 9 Armor Coverage 250 Resistance: TH 25 Core Shielding 30 Propulsion Shielding 66 Utility Shielding 66 Phase Shifting 15 Evasion (%) 80 Target Analysis 6 Core Analysis 12 Armor Integrity Analysis 50 Recoil Reduction 2 Salvage Targeting 8 Offensive Hacking 45 Defensive Hacking 14 Item Schematics ----------------- Combat Drone Bay | -6/Data Miner | Free Lgt. Regenerative Plating | -6/Data Miner | Free Exp. Cesium-ion Thruster | -6/Data Miner | Free Prc. Matter Filter | -6/Data Miner | Free Hvy. Proton Cannon | -6/Data Miner | Free Field Propulsion Array | -6/Data Miner | Free Adv. Cryofiber Web | -6/Data Miner | Free Force Lance | -6/Data Miner | Free Biometal Leg | -6/Data Miner | Free Imp. Linear Gravjet | -6/Data Miner | Free Enh. Gauss Cannon | -6/Data Miner | Free Adv. Power Amplifier | -4/Factory | Hacked Imp. Utility Shielding | -3/Research | Scanalyzed Adv. Cloaking Device | -3/Quarantine | Hacked Adv. Reaction Control System | -3/Quarantine | Scanalyzed Imp. Q-thruster | -2/Protoforge | Archive Nanosword | -2/Protoforge | Archive Exp. ECM Suite | -2/Protoforge | Archive Robot Schematics ------------------ A-15 Conveyor | -6/Data Miner | Free P-70 Sage | -6/Data Miner | Free R-10 Processor | -6/Data Miner | Free G-50 Soldier | -6/Data Miner | Free B-60 Warrior | -6/Data Miner | Free A-27 Freighter | -6/Data Miner | Free W-44 Eye | -2/Protoforge | Archive Fabricated ------------ Adv. Power Amplifier | x2 | -3/Research | Authchip Adv. Cloaking Device | x2 | -2/Testing Repaired ---------- Nothing Alien Tech Used ----------------- Dimensional Node Initializer Terrabomb High-powered Transdimensional Reconstructor Achievements -------------- None Challenges ------------ None Game ------ Seed TeslaIntegrityStrikerail Manual? 0 Play Time 02:17:45 Cumulative 410.5 hours Start 2025.08.09 @ 17:54:12 End 2025.08.10 @ 18:00:46 Sessions 7 Manual Loads 0 Difficulty Rogue Special Mode None Game No. 516 Rogue 516 Adventurer 0 Explorer 0 Win Type - Total 32 Types 16/1/9/1/1/1/0/1/1/1 Lore% 88 Gallery% 82 Achievement% 77 Wizard Run 0 Options --------- Layout 0 ASCII 0 Keyboard 0 Movement Numpad Keybinds 0 Fullscreen 1 Font 18/SmallcapsGlow Map View 76x50 Zoom Use 0% Tactical HUD 1 Map Filters NONE Filters NONE Steam 1 RUN: 5c26473d-0c9a-4504-8c2e-33485b091ce5